fUST/lending_fUST_20240721
["ID","MTS","AMOUNT","RATE_DAILY","PERIOD"]
[332787228,1721521845770,-500.0,0.00013698,2]
[332787229,1721521845781,-1045.11,0.00013698,2]
[332787230,1721521845792,-596.87,0.00013698,2]
[332787231,1721521845804,-564.97,0.00013698,2]
[332787232,1721521845815,-500.0,0.00013698,2]
[332787233,1721521845827,-500.0,0.00013698,2]
[332787234,1721521845838,-500.0,0.00013698,2]
[332787235,1721521845848,-5093.48,0.00013698,2]
[332787236,1721521845859,-5093.48,0.00013698,2]
[332787237,1721521845870,-842.97,0.00013698,2]
[332787238,1721521845881,-5093.48,0.00013698,2]
[332787239,1721521845893,-5093.48,0.00013698,2]
[332787240,1721521845904,-521.76625834,0.00013698,2]
[332787241,1721521845917,-5093.48,0.00013698,2]
[332787242,1721521845928,-500.0,0.00013698,2]
[332787243,1721521845939,-5093.48,0.00013698,2]
[332787244,1721521846230,-5093.48,0.00013698,2]
[332787245,1721521846240,-5093.48,0.00013698,2]
[332787246,1721521846251,-5093.48,0.00013698,2]
[332787247,1721521846261,-5093.48,0.00013698,2]
[332787248,1721521846272,-5093.48,0.00013698,2]
[332787249,1721521846282,-5093.48,0.00013698,2]
[332787250,1721521846293,-5093.48,0.00013698,2]
[332787251,1721521846304,-873.02,0.00013698,2]
[332787252,1721521846315,-5093.48,0.00013698,2]
[332787253,1721521846324,-5093.48,0.00013698,2]
[332787254,1721521846335,-5093.48,0.00013698,2]
[332787255,1721521846345,-1096.14,0.00013698,2]
[332787256,1721521846355,-500.0,0.00013698,2]
[332787257,1721521846366,-5093.48,0.00013698,2]
[332787258,1721521846376,-5093.48,0.00013698,2]
[332787260,1721521846385,-5093.48,0.00013698,2]
[332787261,1721521846398,-5093.48,0.00013698,2]
[332787262,1721521846407,-5093.48,0.00013698,2]
[332787263,1721521846416,-5093.48,0.00013698,2]
[332787264,1721521846426,-5093.48,0.00013698,2]
[332787265,1721521846436,-5093.64467264,0.00013698,2]
[332787266,1721521846445,-500.0,0.00013698,2]
[332787267,1721521846454,-536.83,0.00013698,2]
[332787268,1721521846464,-517.43758687,0.00013698,2]
[332787269,1721521846474,-500.0,0.00013698,2]
[332787270,1721521846484,-1910.66,0.00013698,2]
[332787271,1721521846494,-898.05,0.00013698,2]
[332787273,1721521846503,-2397.02,0.00013698,2]
[332787274,1721521846513,-2397.02,0.00013698,2]
[332787275,1721521846522,-2397.02,0.00013698,2]
[332787276,1721521846532,-2397.02,0.00013698,2]
[332787277,1721521846541,-500.0,0.00013698,2]
[332787278,1721521846550,-500.0,0.00013698,2]
[332787279,1721521846559,-2397.02,0.00013698,2]
[332787280,1721521846569,-500.0,0.00013698,2]
[332787281,1721521846578,-500.0,0.00013698,2]
[332787282,1721521846588,-500.0,0.00013698,2]
[332787283,1721521846597,-2397.02,0.00013698,2]
[332787284,1721521846607,-500.0,0.00013698,2]
[332787285,1721521846619,-2397.02,0.00013698,2]
[332787286,1721521846629,-2397.02,0.00013698,2]
[332787287,1721521846640,-500.0,0.00013698,2]
[332787288,1721521846650,-2397.02,0.00013698,2]
[332787289,1721521846660,-2397.02,0.00013698,2]
[332787290,1721521846671,-2397.02,0.00013698,2]
[332787291,1721521846681,-2397.02,0.00013698,2]
[332787292,1721521846691,-2397.02,0.00013698,2]
[332787293,1721521846700,-500.0,0.00013698,2]
[332787294,1721521846709,-2397.02,0.00013698,2]
[332787295,1721521846720,-500.0,0.00013698,2]
[332787296,1721521846730,-2397.02,0.00013698,2]
[332787298,1721521846739,-2397.02,0.00013698,2]
[332787299,1721521846749,-2397.02,0.00013698,2]
[332787300,1721521846758,-500.0,0.00013698,2]
[332787301,1721521846768,-798.67,0.00013698,2]
[332787302,1721521846777,-2397.02,0.00013698,2]
[332787303,1721521846787,-2397.02,0.00013698,2]
[332787304,1721521846796,-2397.02,0.00013698,2]
[332787305,1721521846806,-2397.02,0.00013698,2]
[332787306,1721521846816,-2397.02,0.00013698,2]
[332787307,1721521846825,-2397.02,0.00013698,2]
[332787308,1721521846835,-2397.05919494,0.00013698,2]
[332787309,1721521846844,-2468.43,0.00013698,2]
[332787310,1721521846854,-2313.56,0.00013698,2]
[332787311,1721521846865,-1081.81,0.00013698,2]
[332787312,1721521846875,-500.0,0.00013698,2]
[332787313,1721521846885,-1281.63,0.00013698,2]
[332787314,1721521846894,-615.12,0.00013698,2]
[332787315,1721521846904,-1592.31,0.00013698,2]
[332787316,1721521846913,-1019.53,0.00013698,2]
[332787317,1721521846923,-500.0,0.00013698,2]
[332787318,1721521846933,-500.0,0.00013698,2]
[332787319,1721521846943,-500.0,0.00013698,2]
[332787320,1721521846953,-500.0,0.00013698,2]
[332787321,1721521846963,-1349.61,0.00013698,2]
[332787322,1721521846973,-516.86201681,0.00013698,2]
[332787323,1721521846982,-693.17,0.00013698,2]
[332787324,1721521846992,-1252.6,0.00013698,2]
[332787325,1721521847001,-500.0,0.00013698,2]
[332787326,1721521847014,-500.0,0.00013698,2]
[332787327,1721521847024,-13179.09,0.00013698,2]
[332787328,1721521847034,-500.0,0.00013698,2]
[332787329,1721521847045,-500.0,0.00013698,2]
[332787330,1721521847056,-500.0,0.00013698,2]
[332787331,1721521847066,-502.11824121,0.00013698,2]
[332787332,1721521847075,-500.0,0.00013698,2]
[332787333,1721521847084,-500.0,0.00013698,2]
[332787334,1721521847096,-500.0,0.00013698,2]
[332787335,1721521847107,-2253.88,0.00013698,2]
[332787336,1721521847118,-27254.32,0.00013698,2]
[332787337,1721521847128,-1454.0,0.00013698,2]
[332787338,1721521847138,-500.0,0.00013698,2]
[332787339,1721521847148,-500.0,0.00013698,2]
[332787340,1721521847158,-500.0,0.00013698,2]
[332787341,1721521847167,-500.0,0.00013698,2]
[332787342,1721521847176,-500.0,0.00013698,2]
[332787343,1721521847186,-500.0,0.00013698,2]
[332787344,1721521847196,-502.57318082,0.00013698,2]
[332787345,1721521847207,-500.0,0.00013698,2]
[332787346,1721521847216,-2564.03,0.00013698,2]
[332787347,1721521847226,-839.57,0.00013698,2]
[332787348,1721521847236,-2684.63,0.00013698,2]
[332787349,1721521847246,-500.0,0.00013698,2]
[332787350,1721521847256,-500.0,0.00013698,2]
[332787351,1721521847266,-500.0,0.00013698,2]
[332787352,1721521847276,-910.55,0.00013698,2]
[332787353,1721521847285,-501.14861689,0.00013698,2]
[332787354,1721521847295,-500.0,0.00013698,2]
[332787355,1721521847304,-500.0,0.00013698,2]
[332787356,1721521847314,-500.0,0.00013698,2]
[332787357,1721521847323,-539.7180597,0.00013698,2]
[332787358,1721521847333,-2368.1920592,0.00013699,2]
[332787359,1721521847343,-3000.0,0.00013699,2]
[332787360,1721521847352,-2720.718093,0.00013699,2]
[332787361,1721521847363,-456.22,0.00013699,2]
[332787362,1721521847374,-153.0,0.000138,2]
[332787363,1721521847384,-153.0,0.000138,2]
[332787364,1721521847393,-153.0,0.000138,2]
[332787365,1721521847403,-153.0,0.000138,2]
[332787366,1721521847413,-153.0,0.000138,2]
[332787367,1721521847423,-420.0,0.00013861,2]
[332787368,1721521847432,-420.0,0.00013898,2]
[332787369,1721521847443,-76954.54199838,0.000139,2]
[332787370,1721521847766,-2582.12091588,0.000139,2]
[332787371,1721521848074,-502.06952761,0.00013698,2]
[332787372,1721521848085,-186514.51549857,0.000139,2]
[332787373,1721521849347,-631.2,0.00013698,2]
[332787374,1721521849357,-500.0,0.00013698,2]
[332787375,1721521849368,-500.0,0.00013698,2]
[332787376,1721521849378,-500.0,0.00013698,2]
[332787377,1721521849388,-500.0,0.00013698,2]
[332787378,1721521849398,-500.0,0.00013698,2]
[332787379,1721521849408,-500.0,0.00013698,2]
[332787380,1721521849418,-500.0,0.00013698,2]
[332787381,1721521849428,-339.54272699,0.00013698,2]
[332787382,1721521849440,-500.0,0.00013698,2]
[332787383,1721521849451,-500.0,0.00013698,2]
[332787384,1721521849461,-500.0,0.00013698,2]
[332787385,1721521849471,-505.86,0.00013698,2]
[332787386,1721521849481,-441.5816202,0.00013698,2]
[332787387,1721521849491,-500.0,0.00013698,2]
[332787388,1721521849501,-500.0,0.00013698,2]
[332787389,1721521849511,-500.0,0.00013698,2]
[332787390,1721521849522,-74968.01561444,0.000139,2]
[332787391,1721521849533,-1140.724597,0.000139,2]
[332787392,1721521849542,-1140.724597,0.000139,2]
[332787393,1721521849553,-500.0,0.00013961,2]
[332787394,1721521849563,-500.0,0.00013961,2]
[332787395,1721521849573,-500.0,0.0001397,2]
[332787396,1721521849583,-500.0,0.00013971,2]
[332787397,1721521849594,-500.0,0.00013971,2]
[332787398,1721521849604,-500.0,0.00013971,2]
[332787399,1721521849615,-618.06640636,0.00013971,2]
[332787400,1721521849626,-500.0,0.00013972,2]
[332787401,1721521849637,-340.55821609,0.00013972,2]
[332787402,1721521849649,-500.0,0.00013972,2]
[332787403,1721521849659,-500.0,0.00013972,2]
[332787404,1721521849669,-500.0,0.00013972,2]
[332787405,1721521849678,-500.0,0.00013972,2]
[332787406,1721521849687,-896.13,0.00013972,2]
[332787407,1721521849697,-712.15,0.00013972,2]
[332787408,1721521849708,-500.0,0.00013972,2]
[332787409,1721521849717,-500.0,0.00013972,2]
[332787410,1721521849726,-500.0,0.00013972,2]
[332787411,1721521849737,-514.37030857,0.00013972,2]
[332787412,1721521849746,-755.27,0.00013972,2]
[332787413,1721521849758,-500.0,0.00013972,2]
[332787414,1721521849769,-922.84,0.00013972,2]
[332787415,1721521849779,-955.14,0.00013972,2]
[332787416,1721521849790,-500.0,0.00013972,2]
[332787417,1721521849801,-500.0,0.00013972,2]
[332787418,1721521849811,-500.0,0.00013972,2]
[332787419,1721521849821,-500.0,0.00013972,2]
[332787420,1721521849832,-500.0,0.00013972,2]
[332787421,1721521849843,-500.0,0.00013972,2]
[332787422,1721521849854,-654.99,0.00013972,2]
[332787423,1721521849865,-500.0,0.00013972,2]
[332787424,1721521849876,-500.0,0.00013972,2]
[332787425,1721521849886,-500.0,0.00013972,2]
[332787426,1721521849896,-500.0,0.00013972,2]
[332787427,1721521849908,-500.0,0.00013972,2]
[332787428,1721521849918,-500.0,0.00013972,2]
[332787429,1721521849927,-547.23,0.00013972,2]
[332787430,1721521849937,-500.0,0.00013972,2]
[332787431,1721521849948,-500.0,0.00013972,2]
[332787432,1721521849960,-500.0,0.00013972,2]
[332787433,1721521849970,-500.0,0.00013972,2]
[332787434,1721521849980,-164.44397908,0.00013972,2]
[332787435,1721521849991,-500.0,0.00013972,2]
[332787436,1721521850001,-500.0,0.00013972,2]
[332787437,1721521850014,-500.0,0.00013972,2]
[332787438,1721521850024,-500.0,0.00013972,2]
[332787439,1721521850034,-500.0,0.00013972,2]
[332787440,1721521850045,-500.0,0.00013972,2]
[332787441,1721521850055,-523.49,0.00013972,2]
[332787442,1721521850065,-500.0,0.00013972,2]
[332787443,1721521850075,-500.0,0.00013972,2]
[332787444,1721521850086,-500.0,0.00013972,2]
[332787445,1721521850097,-500.0,0.00013972,2]
[332787446,1721521850109,-1131.85,0.00013972,2]
[332787447,1721521850119,-500.0,0.00013972,2]
[332787448,1721521850128,-500.0,0.00013972,2]
[332787449,1721521850138,-627.68,0.00013972,2]
[332787450,1721521850149,-400.0,0.00013972,2]
[332787451,1721521850159,-500.0,0.00013972,2]
[332787452,1721521850170,-508.80795726,0.00013972,2]
[332787453,1721521850181,-500.0,0.00013972,2]
[332787454,1721521850191,-500.0,0.00013972,2]
[332787455,1721521850202,-500.0,0.00013972,2]
[332787456,1721521850212,-500.0,0.00013972,2]
[332787457,1721521850222,-500.0,0.00013972,2]
[332787458,1721521850233,-500.0,0.00013972,2]
[332787459,1721521850242,-500.0,0.00013972,2]
[332787460,1721521850252,-500.0,0.00013972,2]
[332787461,1721521850262,-500.0,0.00013972,2]
[332787462,1721521850273,-642.62,0.00013972,2]
[332787463,1721521850282,-500.0,0.00013972,2]
[332787464,1721521850292,-500.0,0.00013972,2]
[332787465,1721521850302,-500.0,0.00013972,2]
[332787466,1721521850311,-500.0,0.00013972,2]
[332787467,1721521850321,-500.0,0.00013972,2]
[332787468,1721521850331,-500.0,0.00013972,2]
[332787469,1721521850340,-500.0,0.00013972,2]
[332787470,1721521850350,-500.0,0.00013972,2]
[332787471,1721521850359,-768.55,0.00013972,2]
[332787472,1721521850369,-500.0,0.00013972,2]
[332787473,1721521850379,-500.0,0.00013972,2]
[332787474,1721521850388,-500.0,0.00013972,2]
[332787475,1721521850398,-150.0,0.00013972,2]
[332787476,1721521850407,-500.0,0.00013972,2]
[332787477,1721521850417,-595.23,0.00013972,2]
[332787478,1721521850426,-500.0,0.00013972,2]
[332787479,1721521850435,-381.21198987,0.00013972,2]
[332787480,1721521850445,-500.0,0.00013972,2]
[332787481,1721521850454,-500.0,0.00013972,2]
[332787482,1721521850464,-185.29238768,0.00013972,2]
[332787483,1721521850473,-500.0,0.00013972,2]
[332787484,1721521850483,-500.0,0.00013972,2]
[332787485,1721521850493,-500.0,0.00013972,2]
[332787486,1721521850502,-500.0,0.00013972,2]
[332787487,1721521850512,-500.0,0.00013972,2]
[332787488,1721521850522,-1091.55,0.00013972,2]
[332787489,1721521850532,-553.59452076,0.00013972,2]
[332787490,1721521850541,-500.0,0.00013972,2]
[332787491,1721521850551,-500.0,0.00013972,2]
[332787492,1721521850562,-500.0,0.00013972,2]
[332787493,1721521850572,-500.0,0.00013972,2]
[332787494,1721521850581,-500.0,0.00013972,2]
[332787495,1721521850591,-500.55636249,0.00013972,2]
[332787496,1721521850601,-1839.81,0.00013972,2]
[332787497,1721521850611,-500.0,0.00013972,2]
[332787498,1721521850621,-500.0,0.00013972,2]
[332787499,1721521850630,-568.21,0.00013972,2]
[332787500,1721521850640,-500.0,0.00013972,2]
[332787501,1721521850649,-500.0,0.00013972,2]
[332787502,1721521850659,-500.0,0.00013972,2]
[332787503,1721521850668,-500.0,0.00013972,2]
[332787504,1721521850678,-500.0,0.00013972,2]
[332787505,1721521850688,-500.0,0.00013972,2]
[332787506,1721521850698,-576.8,0.00013972,2]
[332787507,1721521850709,-500.0,0.00013972,2]
[332787508,1721521850718,-500.0,0.00013972,2]
[332787509,1721521850728,-500.0,0.00013972,2]
[332787510,1721521850738,-500.0,0.00013972,2]
[332787511,1721521850747,-500.0,0.00013972,2]
[332787512,1721521850756,-732.11,0.00013972,2]
[332787513,1721521850766,-589.15,0.00013972,2]
[332787514,1721521850776,-500.0,0.00013972,2]
[332787515,1721521850785,-500.0,0.00013972,2]
[332787516,1721521850795,-1635.45,0.00013972,2]
[332787517,1721521850805,-500.0,0.00013972,2]
[332787518,1721521850814,-2679.03,0.00013972,2]
[332787519,1721521850824,-500.0,0.00013972,2]
[332787520,1721521850833,-500.0,0.00013972,2]
[332787521,1721521850843,-529.66,0.00013972,2]
[332787522,1721521850853,-500.0,0.00013972,2]
[332787523,1721521850863,-799.14,0.00013972,2]
[332787524,1721521850873,-757.0,0.00013972,2]
[332787525,1721521850883,-500.0,0.00013972,2]
[332787526,1721521850892,-1510.98,0.00013972,2]
[332787527,1721521850902,-503.48521691,0.00013972,2]
[332787528,1721521850912,-576.63,0.00013972,2]
[332787529,1721521850922,-500.0,0.00013972,2]
[332787530,1721521850931,-634.9,0.00013972,2]
[332787531,1721521850941,-646.81,0.00013972,2]
[332787532,1721521850951,-536.17445901,0.00013972,2]
[332787533,1721521850961,-899.22,0.00013972,2]
[332787534,1721521850971,-1190.33,0.00013972,2]
[332787535,1721521850980,-1936.99,0.00013972,2]
[332787536,1721521850990,-500.0,0.00013972,2]
[332787537,1721521850999,-811.32,0.00013972,2]
[332787538,1721521851010,-500.0,0.00013972,2]
[332787539,1721521851024,-500.0,0.00013972,2]
[332787540,1721521851033,-500.0,0.00013972,2]
[332787541,1721521851043,-2637.96,0.00013972,2]
[332787542,1721521851053,-500.0,0.00013972,2]
[332787543,1721521851064,-500.0,0.00013972,2]
[332787544,1721521851073,-510.58623771,0.00013972,2]
[332787545,1721521851083,-508.7950236,0.00013972,2]
[332787546,1721521851093,-500.0,0.00013972,2]
[332787547,1721521851103,-500.0,0.00013972,2]
[332787548,1721521851114,-500.0,0.00013972,2]
[332787549,1721521851123,-500.0,0.00013972,2]
[332787550,1721521851134,-504.91331471,0.00013972,2]
[332787551,1721521851143,-500.0,0.00013972,2]
[332787552,1721521851154,-500.0,0.00013972,2]
[332787553,1721521851165,-1049.64,0.00013972,2]
[332787554,1721521851176,-500.0,0.00013972,2]
[332787555,1721521851186,-500.0,0.00013972,2]
[332787556,1721521851196,-500.0,0.00013972,2]
[332787557,1721521851206,-500.0,0.00013972,2]
[332787558,1721521851218,-1136.8,0.00013972,2]
[332787559,1721521851228,-510.46,0.00013972,2]
[332787560,1721521851237,-1064.54,0.00013972,2]
[332787561,1721521851247,-500.0,0.00013972,2]
[332787562,1721521851256,-534.5,0.00013972,2]
[332787563,1721521851266,-500.0,0.00013972,2]
[332787564,1721521851276,-500.0,0.00013972,2]
[332787565,1721521851285,-500.0,0.00013972,2]
[332787566,1721521851295,-500.0,0.00013972,2]
[332787567,1721521851304,-500.0,0.00013972,2]
[332787568,1721521851313,-500.0,0.00013972,2]
[332787569,1721521851323,-630.97,0.00013972,2]
[332787570,1721521851333,-805.73,0.00013972,2]
[332787571,1721521851343,-509.2,0.00013972,2]
[332787572,1721521851352,-4153.41,0.00013972,2]
[332787573,1721521851362,-500.0,0.00013972,2]
[332787574,1721521851372,-1667.98,0.00013972,2]
[332787575,1721521851381,-500.0,0.00013972,2]
[332787576,1721521851391,-831.74,0.00013972,2]
[332787577,1721521851400,-500.0,0.00013972,2]
[332787578,1721521851409,-1456.09,0.00013972,2]
[332787579,1721521851419,-500.0,0.00013972,2]
[332787580,1721521851429,-500.0,0.00013972,2]
[332787581,1721521851438,-525.08,0.00013972,2]
[332787582,1721521851448,-500.0,0.00013972,2]
[332787583,1721521851457,-500.0,0.00013972,2]
[332787584,1721521851467,-500.0,0.00013972,2]
[332787585,1721521851476,-500.0,0.00013972,2]
[332787586,1721521851486,-500.0,0.00013972,2]
[332787587,1721521851496,-500.0,0.00013972,2]
[332787588,1721521851505,-500.0,0.00013972,2]
[332787589,1721521851514,-618.06,0.00013972,2]
[332787590,1721521851523,-500.0,0.00013972,2]
[332787591,1721521851533,-208.87,0.00013972,2]
[332787592,1721521851543,-500.0,0.00013972,2]
[332787593,1721521851552,-248.53220768,0.00013972,2]
[332787596,1721522722834,154.77557542,0.0001,2]
[332787637,1721523031725,-165.2,0.00010959,2]
[332787639,1721523031735,-826.0,0.00010959,2]
[332787641,1721523031745,-300.0,0.00012413,2]
[332787643,1721523031755,-300.0,0.00012413,2]
[332787645,1721523031765,-844.07816034,0.00012414,2]
[332787647,1721523031776,-2610.54855304,0.00012414,2]
[332787649,1721523031788,-1025.02496571,0.00012414,2]
[332787689,1721523037876,-11474.93535095,0.00012414,2]
[332787691,1721523037889,-8945.41296996,0.00012414,2]
[332787692,1721523037900,-1813.4851761,0.00013588,2]
[332787693,1721523037911,-743.67264231,0.00013598,2]
[332787694,1721523037921,-420.0,0.00013655,2]
[332787695,1721523037931,-45872.8625531,0.00013678,2]
[332787696,1721523037942,-168200.496028,0.00013688,2]
[332787697,1721523037956,-500.0,0.00013698,2]
[332787698,1721523037966,-500.0,0.00013698,2]
[332787699,1721523037976,-500.0,0.00013698,2]
[332787700,1721523037985,-500.0,0.00013698,2]
[332787701,1721523037995,-581.90704144,0.00013698,2]
[332787702,1721523038004,-500.0,0.00013698,2]
[332787703,1721523038014,-500.0,0.00013698,2]
[332787705,1721523038023,-500.0,0.00013698,2]
[332787707,1721523038033,-500.0,0.00013698,2]
[332787709,1721523038043,-571.39830969,0.00013698,2]
[332787711,1721523038052,-500.0,0.00013698,2]
[332787713,1721523038065,-500.0,0.00013698,2]
[332787715,1721523038075,-500.0,0.00013698,2]
[332787717,1721523038085,-500.0,0.00013698,2]
[332787718,1721523038096,-500.0,0.00013698,2]
[332787719,1721523038108,-500.0,0.00013698,2]
[332787720,1721523038118,-500.0,0.00013698,2]
[332787721,1721523038129,-500.0,0.00013698,2]
[332787722,1721523038138,-500.0,0.00013698,2]
[332787723,1721523038150,-500.0,0.00013698,2]
[332787724,1721523038163,-428.6466402,0.00013698,2]
[332787725,1721523038176,-500.0,0.00013698,2]
[332787726,1721523038187,-500.0,0.00013698,2]
[332787727,1721523038199,-500.0,0.00013698,2]
[332787728,1721523038210,-500.0,0.00013698,2]
[332787729,1721523038220,-500.0,0.00013698,2]
[332787730,1721523038230,-200.0,0.00013698,2]
[332787731,1721523038240,-500.0,0.00013698,2]
[332787732,1721523038252,-500.0,0.00013698,2]
[332787733,1721523038263,-500.0,0.00013698,2]
[332787734,1721523038274,-500.0,0.00013698,2]
[332787735,1721523038287,-500.0,0.00013698,2]
[332787736,1721523038299,-500.0,0.00013698,2]
[332787737,1721523038310,-300.0,0.00013698,2]
[332787738,1721523038320,-500.0,0.00013698,2]
[332787739,1721523038330,-500.0,0.00013698,2]
[332787740,1721523038341,-500.0,0.00013698,2]
[332787741,1721523038351,-300.0,0.00013698,2]
[332787742,1721523038363,-500.0,0.00013698,2]
[332787743,1721523038374,-500.0,0.00013698,2]
[332787744,1721523038383,-539.7180597,0.00013698,2]
[332787745,1721523038395,-500.0,0.00013698,2]
[332787746,1721523038406,-500.0,0.00013698,2]
[332787747,1721523038415,-500.0,0.00013698,2]
[332787748,1721523038427,-500.0,0.00013698,2]
[332787749,1721523038438,-500.0,0.00013698,2]
[332787750,1721523038450,-500.0,0.00013698,2]
[332787751,1721523038461,-500.0,0.00013698,2]
[332787752,1721523038471,-500.0,0.00013698,2]
[332787753,1721523038480,-500.0,0.00013698,2]
[332787754,1721523038489,-300.0,0.00013698,2]
[332787755,1721523038499,-500.0,0.00013698,2]
[332787756,1721523038509,-500.0,0.00013698,2]
[332787757,1721523038518,-500.0,0.00013698,2]
[332787758,1721523038528,-500.0,0.00013698,2]
[332787759,1721523038538,-500.0,0.00013698,2]
[332787760,1721523038548,-500.0,0.00013698,2]
[332787761,1721523038558,-524.73135772,0.00013698,2]
[332787762,1721523038570,-500.0,0.00013698,2]
[332787763,1721523038580,-500.0,0.00013698,2]
[332787764,1721523038590,-228.13644181,0.00013698,2]
[332787765,1721523038605,-500.0,0.00013698,2]
[332787766,1721523038889,-618.28186363,0.00013698,2]
[332787767,1721523038899,-500.0,0.00013698,2]
[332787768,1721523038910,-500.0,0.00013698,2]
[332787769,1721523038920,-255.62,0.00013698,2]
[332787770,1721523038929,-500.0,0.00013698,2]
[332787771,1721523038939,-500.0,0.00013698,2]
[332787772,1721523038948,-500.0,0.00013698,2]
[332787773,1721523038958,-500.0,0.00013698,2]
[332787774,1721523038967,-482.34424015,0.00013698,2]
[332787775,1721523038977,-500.0,0.00013698,2]
[332787776,1721523038986,-554.99193017,0.00013698,2]
[332787777,1721523038996,-1770.12,0.00013698,2]
[332787778,1721523039006,-500.0,0.00013698,2]
[332787779,1721523039015,-500.0,0.00013698,2]
[332787780,1721523039025,-258.57234386,0.00013698,2]
[332787781,1721523039034,-500.0,0.00013698,2]
[332787782,1721523039044,-500.0,0.00013698,2]
[332787783,1721523039053,-500.0,0.00013698,2]
[332787784,1721523039063,-500.0,0.00013698,2]
[332787785,1721523039072,-520.86,0.00013698,2]
[332787786,1721523039083,-500.0,0.00013698,2]
[332787787,1721523039092,-554.79,0.00013698,2]
[332787788,1721523039102,-500.0,0.00013698,2]
[332787789,1721523039111,-500.0,0.00013698,2]
[332787790,1721523039120,-500.0,0.00013698,2]
[332787791,1721523039129,-500.0,0.00013698,2]
[332787792,1721523039138,-500.0,0.00013698,2]
[332787793,1721523039148,-500.0,0.00013698,2]
[332787794,1721523039157,-500.0,0.00013698,2]
[332787795,1721523039166,-500.0,0.00013698,2]
[332787796,1721523039175,-500.0,0.00013698,2]
[332787797,1721523039184,-501.28953864,0.00013698,2]
[332787798,1721523039193,-500.0,0.00013698,2]
[332787799,1721523039203,-521.9237096,0.00013698,2]
[332787800,1721523039212,-500.0,0.00013698,2]
[332787801,1721523039221,-1805.16,0.00013698,2]
[332787802,1721523039230,-500.0,0.00013698,2]
[332787803,1721523039239,-509.6,0.00013698,2]
[332787804,1721523039248,-436.50278099,0.00013698,2]
[332787805,1721523039257,-500.0,0.00013698,2]
[332787806,1721523039267,-500.0,0.00013698,2]
[332787807,1721523039276,-500.0,0.00013698,2]
[332787808,1721523039285,-500.0,0.00013698,2]
[332787809,1721523039295,-500.0,0.00013698,2]
[332787810,1721523039313,-265.28233253,0.00013698,2]
[332787811,1721523039326,-500.0,0.00013698,2]
[332787812,1721523039336,-500.0,0.00013698,2]
[332787813,1721523039347,-503.55041733,0.00013698,2]
[332787814,1721523039356,-500.0,0.00013698,2]
[332787815,1721523039366,-500.0,0.00013698,2]
[332787816,1721523039376,-524.23517975,0.00013698,2]
[332787817,1721523039386,-500.0,0.00013698,2]
[332787818,1721523039396,-1147.49,0.00013698,2]
[332787819,1721523039406,-500.0,0.00013698,2]
[332787820,1721523039416,-500.0,0.00013698,2]
[332787821,1721523039426,-500.0,0.00013698,2]
[332787822,1721523039436,-500.0,0.00013698,2]
[332787823,1721523039446,-500.0,0.00013698,2]
[332787825,1721523039456,-500.0,0.00013698,2]
[332787826,1721523039466,-500.81639661,0.00013698,2]